Workbook

Sheet Sheet1
A2: PIP-0011 Projected Developer Fund Reward if Hard Fork Activated at Block 200000. Two years 20%, then 10% for further Two years.
A4: Years | B4: From Block | C4: To Block | D4: Block Count | E4: Reward Per Block | F4: Total coins per Period | G4: Total coins in circultaion | H4: Developer fund Reward % | I4: Developer fund reward | J4: Miners Reward
A5: 2 | B5: 0 | C5: =B5+210240 -> 210240 | D5: 210240 | E5: 100 | F5: =D5*E5 -> 21024000 | G5: =F5 -> 21024000 | H5: 20 | I5: =(D5-200000)*100*(+H5/100) -> 204800 | J5: =F5-I5 -> 20819200
A6: 4 | B6: =C5+1 -> 210241 | C6: =B6+210239 -> 420480 | D6: 210240 | E6: =E5/2 -> 50 | F6: 10512000 | G6: =G5+F6 -> 31536000 | H6: 20 | I6: =(D6)*E6*(+H6/100) -> 2102400 | J6: 8409600
A7: 6 | B7: 420481 | C7: 630720 | D7: 210240 | E7: 25 | F7: 5256000 | G7: 36792000 | H7: 10 | I7: 525600 | J7: 4730400
A8: 8 | B8: 630721 | C8: 840960 | D8: 210240 | E8: 12.5 | F8: 2628000 | G8: 39420000 | H8: 0 | I8: 0 | J8: 2628000
A9: 10 | B9: 840961 | C9: 1051200 | D9: 210240 | E9: 6.25 | F9: 1314000 | G9: 40734000 | H9: 0 | I9: 0 | J9: 1314000
A10: 12 | B10: 1051201 | C10: 1261440 | D10: 210240 | E10: 3.125 | F10: 657000 | G10: 41391000 | H10: 0 | I10: 0 | J10: 657000
A11: 14 | B11: 1261441 | C11: 1471680 | D11: 210240 | E11: 1.5625 | F11: 328500 | G11: 41719500 | H11: 0 | I11: 0 | J11: 328500
E13: Develeopr Fund Reward (PascalCoins) after 4 years | I13: =sum(I5:I7) -> 2832800 | J13: 33959200
E14: Projected Fund at 4 USD current price | I14: =I13*4 -> 11331200
A20: PIP-0011 Projected Developer Fund Reward if Hard Fork Activated at Block 200000. Developr Reward set at 20% forever
A22: Years | B22: From Block | C22: To Block | D22: Block Count | E22: Reward Per Block | F22: Total coins per Period | G22: Total coins in circultaion | H22: Developer fund Reward % | I22: Developer fund reward | J22: Miners Reward
A23: 2 | B23: 0 | C23: =B23+210240 -> 210240 | D23: 210240 | E23: 100 | F23: =D23*E23 -> 21024000 | G23: =F23 -> 21024000 | H23: 20 | I23: =(D23-200000)*100*(+H23/100) -> 204800 | J23: =F23-I23 -> 20819200
A24: 4 | B24: =C23+1 -> 210241 | C24: =B24+210239 -> 420480 | D24: 210240 | E24: =E23/2 -> 50 | F24: 10512000 | G24: =G23+F24 -> 31536000 | H24: 20 | I24: =(D24)*E24*(+H24/100) -> 2102400 | J24: 8409600
A25: 6 | B25: 420481 | C25: 630720 | D25: 210240 | E25: 25 | F25: 5256000 | G25: 36792000 | H25: 20 | I25: 1051200 | J25: 4204800
A26: 8 | B26: 630721 | C26: 840960 | D26: 210240 | E26: 12.5 | F26: 2628000 | G26: 39420000 | H26: 20 | I26: 525600 | J26: 2102400
A27: 10 | B27: 840961 | C27: 1051200 | D27: 210240 | E27: 6.25 | F27: 1314000 | G27: 40734000 | H27: 20 | I27: 262800 | J27: 1051200
A28: 12 | B28: 1051201 | C28: 1261440 | D28: 210240 | E28: 3.125 | F28: 657000 | G28: 41391000 | H28: 20 | I28: 131400 | J28: 525600
A29: 14 | B29: 1261441 | C29: 1471680 | D29: 210240 | E29: 1.5625 | F29: 328500 | G29: 41719500 | H29: 20 | I29: 65700 | J29: 262800
E31: Develeopr Fund Reward (PascalCoins) after 10 years | I31: =sum(I23:I25) -> 3358400 | J31: 33433600
E32: Projected Fund at 4 USD current price | I32: =I31*4 -> 13433600
